bitfinex/quotes_ETHUSD_20251118
["timestamp","ask_amount","ask_price","bid_price","bid_amount"]
[1763503103056,0.2732,3105.8,3105.7,1.09199659]
[1763503103057,0.002,3105.8,3105.7,1.09199659]
[1763503103588,0.002,3105.8,3105.7,0.60269659]
[1763503104002,0.002,3105.8,3105.7,0.12909659]
[1763503104226,0.469,3105.8,3105.7,0.12909659]
[1763503104396,0.002,3105.8,3105.7,0.60269659]
[1763503105910,0.002,3105.8,3105.7,1.09199659]
[1763503106098,0.002,3105.8,3105.7,1.69654245]
[1763503107498,0.002,3105.8,3105.7,1.20724245]
[1763503108177,0.002,3105.8,3105.7,1.69654245]
[1763503116321,0.002,3105.8,3105.7,1.20724245]
[1763503116888,0.002,3105.8,3105.7,1.69314245]
[1763503119321,0.002,3105.8,3105.7,1.20724245]
[1763503119521,0.002,3105.8,3105.7,1.10909659]
[1763503119900,0.002,3105.8,3105.7,1.51460059]
[1763503121098,0.002,3105.8,3105.7,2.42159323]
[1763503121317,0.002,3105.8,3105.7,1.51460059]
[1763503124918,0.002,3105.8,3105.7,2.42159323]
[1763503125417,0.002,3105.8,3105.7,3.15909876]
[1763503125642,0.002,3105.8,3105.7,2.25210612]
[1763503130628,0.002,3105.8,3105.7,1.36070212]
[1763503130838,0.002,3105.8,3105.7,6.06255862]
[1763503131042,0.002,3105.8,3105.7,6.37504262]
[1763503131244,0.002,3105.8,3105.7,5.48363862]
[1763503131427,0.002,3105.8,3105.7,5.96953862]
[1763503131768,0.002,3105.8,3105.7,6.56649248]
[1763503134279,0.453,3105.8,3105.7,0.03607659]
[1763503134473,0.453,3105.8,3105.7,5.48363862]
[1763503134474,0.002,3105.8,3105.7,5.48363862]
[1763503134783,0.002,3105.8,3105.7,5.96953862]
[1763503134958,0.002,3105.8,3105.7,6.56649248]
[1763503135159,0.002,3105.8,3105.7,6.08059248]
[1763503135358,0.2442,3105.8,3105.7,0.63303045]
[1763503135558,0.2442,3105.8,3105.7,0.03607659]
[1763503135762,0.7372,3105.8,3105.7,0.03607659]
[1763503137296,0.2442,3105.8,3105.7,0.03607659]
[1763503138970,0.7372,3105.8,3105.7,0.03607659]
[1763503139590,0.2442,3105.8,3105.7,0.03607659]
[1763503139994,0.002,3105.8,3105.7,0.03607659]
[1763503140380,0.2467,3105.8,3105.7,0.03607659]
[1763503140690,0.7372,3105.8,3105.7,0.03607659]
[1763503142385,0.002,3105.8,3105.7,0.03607659]
[1763503142697,0.002,3105.8,3105.7,1.04827545]
[1763503142917,0.4437,3105.8,3105.7,0.03607659]
[1763503143260,0.9367,3105.8,3105.7,0.03607659]
[1763503144469,1.40739264,3105.7,3105.3,0.001]
[1763503144702,6.09775467,3105.4,3105.1,0.13013619]
[1763503144879,0.0073,3105.2,3105.1,0.001]
[1763503145401,0.5028,3105.2,3105.1,0.001]
[1763503146566,0.5028,3105.2,3105.0,0.001]
[1763503146803,0.235,3105.1,3105.0,0.001]
[1763503147004,0.39874926,3105.1,3105.0,0.001]
[1763503147302,0.87694926,3105.1,3105.0,0.001]
[1763503147517,6.73740393,3105.1,3105.0,0.001]
[1763503155307,1.7839419,3105.1,3105.0,0.001]
[1763503156806,0.39874926,3105.1,3105.0,0.001]
[1763503157001,0.235,3105.1,3105.0,0.001]
[1763503157418,0.7132,3105.1,3105.0,0.001]
[1763503157729,0.7132,3105.1,3105.0,0.13114494]
[1763503164542,0.7132,3105.1,3104.9,0.001]
[1763503164543,0.405504,3105.0,3104.9,0.001]
[1763503164739,1.81729664,3105.0,3104.9,0.001]
[1763503165320,3.398,3105.4,3104.9,0.001]
[1763503165321,0.002,3105.7,3104.9,0.001]
[1763503165643,0.4746,3105.6,3104.9,0.001]
[1763503165949,0.4746,3105.6,3105.0,0.12913035]
[1763503166318,0.2725,3105.1,3105.0,0.12913035]
[1763503167722,0.7451,3105.1,3105.0,0.12913035]
[1763503170223,0.2725,3105.1,3105.0,0.12913035]
[1763503170958,0.2745,3105.1,3105.0,0.12913035]
[1763503176845,0.2745,3105.1,3105.0,0.13013035]
[1763503177763,0.2765,3105.1,3105.0,0.13013035]
[1763503178747,0.2765,3105.1,3105.0,0.001]
[1763503179278,0.7471,3105.1,3105.0,0.001]
[1763503191266,0.002,3105.1,3105.0,0.001]
[1763503192206,0.2552,3105.1,3105.0,0.001]
[1763503192762,0.7468,3105.1,3105.0,0.001]
[1763503192965,0.2552,3105.1,3105.0,0.001]
[1763503193163,0.7468,3105.1,3105.0,0.001]
[1763503194792,6.78486194,3105.1,3105.0,0.001]
[1763503195119,3.03851269,3105.1,3105.0,0.001]
[1763503196124,2.63300869,3105.1,3105.0,0.001]
[1763503196317,1.65379264,3105.1,3105.0,0.001]
[1763503198123,3.59179264,3105.1,3105.0,0.001]
[1763503198315,1.65379264,3105.1,3105.0,0.001]
[1763503198521,1.8191719,3105.1,3105.0,0.001]
[1763503206440,2.2246759,3105.1,3105.0,0.001]
[1763503206733,3.20444137,3105.1,3105.0,0.001]
[1763503209152,5.60073737,3105.1,3105.0,0.001]
[1763503209654,3.20444137,3105.1,3105.0,0.001]
[1763503218631,6.60150637,3105.1,3105.0,0.001]
[1763503218863,6.59698737,3105.1,3105.0,0.001]
[1763503219065,6.32963237,3105.1,3105.0,0.001]
[1763503219368,3.20444137,3105.1,3105.0,0.001]
[1763503219867,2.71284137,3105.1,3105.0,0.001]
[1763503220030,0.002,3105.1,3105.0,0.9684]
[1763503221959,0.002,3105.1,3105.0,0.4749]
[1763503222157,0.4569,3105.1,3105.0,0.001]
[1763503222565,0.002,3105.1,3105.0,0.4537]
[1763503222870,0.002,3105.1,3105.0,0.911]
[1763503224855,0.002,3105.1,3105.0,0.001]
[1763503225158,0.002,3105.1,3105.0,0.4537]
[1763503225347,0.002,3105.1,3105.0,0.911]
[1763503226281,0.2652,3105.1,3105.0,0.001]
[1763503226873,0.002,3105.1,3105.0,0.001]
[1763503228248,0.002,3105.1,3105.0,0.4537]
[1763503230381,4.95641314,3105.3,3105.0,0.4537]
[1763503231857,0.2632,3105.1,3105.0,0.001]
[1763503232792,1.150504,3105.1,3105.0,0.001]
[1763503232982,1.44673979,3105.1,3105.0,0.001]
[1763503233177,3.03622629,3105.1,3105.0,0.001]
[1763503233364,2.12923365,3105.1,3105.0,0.001]
[1763503233558,2.50403378,3105.1,3105.0,0.001]
[1763503234285,3.41102642,3105.1,3105.0,0.001]
[1763503238374,8.36743956,3105.1,3105.0,0.001]
[1763503239888,1.57802856,3105.1,3105.0,0.4641]
[1763503240065,0.90699264,3105.1,3105.0,0.952]
[1763503240262,5.86340578,3105.1,3105.0,0.4641]
[1763503243584,5.86340578,3105.1,3105.0,0.952]
[1763503250919,5.86340578,3105.1,3105.0,0.4641]
[1763503251291,6.52580978,3105.1,3105.0,0.001]
[1763503251491,6.26890978,3105.1,3105.0,0.001]
[1763503251710,6.26890978,3105.1,3105.0,0.4641]
[1763503254419,5.36191714,3105.1,3105.0,0.4641]
[1763503255137,6.82456307,3105.1,3105.0,0.001]
[1763503255310,7.99319677,3105.1,3105.0,0.001]
[1763503255514,3.03678363,3105.1,3105.0,0.001]
[1763503256233,3.03678363,3105.1,3105.0,0.4641]
[1763503256234,2.29188363,3105.1,3105.0,0.4641]
[1763503256538,0.002,3105.4,3105.0,0.4641]
[1763503256841,0.407504,3105.4,3105.2,0.4631]
[1763503257006,1.38701116,3105.4,3105.2,0.4631]
[1763503257202,0.29645921,3105.3,3105.2,0.4631]
[1763503257600,5.25287235,3105.3,3105.2,0.4631]
[1763503257839,6.15986499,3105.3,3105.2,0.4631]
[1763503258038,0.90699264,3105.2,3105.0,0.001]
[1763503258946,4.95641314,3105.3,3105.0,0.001]
[1763503259112,0.97979175,3105.2,3105.0,0.001]
[1763503259316,0.68327353,3105.2,3105.0,0.001]
[1763503259522,4.95641314,3105.3,3105.1,0.4631]
[1763503259828,5.54180485,3105.3,3105.0,0.001]
[1763503260030,4.95641314,3105.3,3105.0,0.001]
[1763503260408,0.29658934,3105.2,3105.0,0.001]
[1763503260812,0.97991569,3105.2,3105.0,0.001]
[1763503261107,0.29663249,3105.1,3105.0,0.001]
[1763503261440,0.68332635,3105.2,3105.0,0.952]
[1763503261618,0.68332635,3105.2,3105.1,0.4631]
[1763503261819,0.9799672,3105.2,3105.1,0.4631]
[1763503262447,0.29664085,3105.2,3105.1,0.4631]
[1763503262621,4.95641314,3105.3,3105.1,0.4631]
[1763503262816,0.2569,3105.2,3105.0,0.001]
[1763503263024,4.95641314,3105.3,3105.0,0.001]
[1763503263206,4.95641314,3105.3,3105.0,0.4889]
[1763503264422,0.90699264,3105.2,3105.0,0.4889]
[1763503264624,4.95641314,3105.3,3105.2,0.4631]
[1763503264830,6.44902749,3105.3,3105.2,0.4631]
[1763503265833,0.90699264,3105.2,3104.9,0.213735]
[1763503266034,0.002,3105.4,3105.1,0.1115]
[1763503266220,0.002,3105.4,3105.3,0.1115]
[1763503266721,0.002,3105.4,3104.1,5.14841314]
[1763503266722,0.002,3105.4,3104.1,5.097335]
[1763503266927,0.002,3105.4,3105.0,0.12914661]
[1763503267124,0.90699264,3105.3,3105.0,0.12914661]
[1763503267647,0.90699264,3105.3,3105.0,0.01937199]
[1763503268562,0.90699264,3105.3,3104.6,0.0119658]
[1763503268962,5.42081314,3105.4,3105.0,0.14092186]
[1763503269151,1.48982435,3105.3,3105.0,0.14092186]
[1763503269561,1.95222435,3105.3,3105.0,0.14092186]
[1763503269761,0.58283171,3105.3,3105.0,0.01096735]
[1763503270076,0.90899264,3105.4,3105.0,0.01096735]
[1763503270274,1.37139264,3105.4,3105.0,0.01096735]
[1763503271163,0.002,3105.4,3105.3,0.012]
[1763503271876,0.002,3105.4,3105.3,0.14113035]
[1763503272175,0.002,3105.4,3105.3,0.11933201]
[1763503274071,0.002,3105.4,3105.3,0.0178998]
[1763503276747,0.002,3105.4,3104.7,0.74614694]
[1763503276942,0.002,3105.4,3105.3,0.12912285]
[1763503277559,0.002,3105.4,3104.7,0.13129047]
[1763503277982,0.002,3105.4,3105.3,0.12912285]
[1763503278593,0.002,3105.4,3105.3,0.01936843]
[1763503279663,0.002,3105.4,3105.3,0.00290526]
[1763503280582,0.002,3105.4,3105.3,0.00043579]
[1763503285302,0.5007,3105.4,3105.3,0.00043579]
[1763503285502,6.03631412,3105.4,3104.1,0.14092186]
[1763503285704,0.90699264,3105.3,3104.1,0.14092186]
[1763503285880,0.90699264,3105.3,3104.3,0.5007]
[1763503287779,0.002,3105.4,3104.3,0.5007]
[1763503292319,0.002,3105.4,3104.3,5.56931412]
[1763503292701,0.002,3105.4,3104.3,0.5007]
[1763503293383,0.002,3105.4,3104.3,5.56931412]
[1763503293628,0.002,3105.4,3104.4,0.55693141]
[1763503294249,0.002,3105.4,3104.5,0.12911576]
[1763503295642,0.002,3105.4,3104.5,0.01936736]
[1763503296141,0.002,3105.4,3104.5,0.42487136]
[1763503296542,0.002,3105.4,3104.5,0.0637307]
[1763503296741,0.002,3105.4,3104.4,1.46392405]
[1763503297042,0.002,3105.4,3104.6,0.12910284]
[1763503297537,0.002,3105.4,3104.5,0.1183535]
[1763503297909,0.002,3105.4,3104.7,0.12910284]
[1763503299057,0.002,3105.4,3104.5,0.44262245]
[1763503299454,0.002,3105.4,3104.8,1.03609548]
[1763503299664,0.002,3105.4,3104.9,0.61047096]
[1763503300164,0.002,3105.4,3104.7,1.36552388]
[1763503300323,0.002,3105.4,3105.0,0.12909576]
[1763503301126,0.002,3105.4,3104.7,5.06861412]
[1763503301341,0.002,3105.4,3105.1,0.12909576]
[1763503302140,0.002,3105.4,3105.2,0.405504]
[1763503302344,0.002,3105.4,3105.1,5.19770988]
[1763503302345,0.002,3105.4,3105.3,0.56032139]
[1763503303037,0.002,3105.4,3105.3,0.68940465]
[1763503303250,0.002,3105.4,3105.3,0.12908326]
[1763503315530,0.4831,3105.4,3105.3,0.12908326]
[1763503315716,0.9434,3105.4,3105.3,0.12908326]
[1763503316496,0.002,3105.4,3105.3,0.12908326]
[1763503317137,0.002,3105.4,3105.3,0.01766249]
[1763503328228,0.002,3105.4,3105.3,1.05469641]
[1763503328787,0.002,3105.4,3105.3,1.02249341]
[1763503330036,0.002,3105.5,3105.3,1.05469641]
[1763503330236,0.002,3105.5,3105.4,0.405504]
[1763503331043,0.002,3105.5,3105.4,0.34047803]
[1763503331256,0.002,3105.5,3105.4,0.52692404]
[1763503332795,0.002,3105.7,3105.4,1.43391668]
[1763503332967,0.002,3105.7,3105.6,5.97560676]
[1763503333170,0.002,3105.7,3105.6,6.38111076]
[1763503333901,0.002,3105.8,3105.7,1.31249664]
[1763503334079,0.002,3106.4,3105.7,2.08185738]
[1763503334284,0.002,3106.4,3105.9,0.405504]
[1763503334461,0.002,3106.4,3105.8,0.405504]
[1763503334661,0.002,3106.4,3105.6,11.78157512]
[1763503334662,0.002,3106.4,3105.6,6.712961]
[1763503334867,0.002,3106.4,3105.9,5.19762494]
[1763503335099,0.002,3106.4,3106.0,3.21957501]
[1763503335393,0.002,3106.4,3106.0,3.85884475]
[1763503335580,0.002,3106.4,3106.1,0.03219471]
[1763503335787,0.002,3106.4,3106.2,5.06861412]
[1763503336081,0.002,3106.5,3106.2,5.578695]
[1763503336663,0.002,3106.5,3106.3,1.31249664]
[1763503337312,0.657,3108.0,3106.3,4.53174756]
[1763503337604,0.657,3108.0,3106.6,6.38111076]
[1763503337760,0.199,3108.0,3106.6,6.38111076]
[1763503337969,0.458,3107.7,3106.6,6.38111076]
[1763503338181,0.458,3107.7,3106.6,6.58011076]
[1763503338493,0.458,3107.7,3106.6,7.23812184]
[1763503339397,0.458,3107.7,3106.6,7.23502184]
[1763503339597,0.199,3108.0,3106.6,7.23502184]
[1763503339783,0.458,3107.8,3106.6,7.23502184]
[1763503340366,0.199,3108.0,3106.7,1.31249664]
[1763503340578,0.458,3108.2,3106.7,1.31249664]
[1763503340579,0.6426,3108.2,3106.9,6.38111076]
[1763503340771,0.1846,3108.2,3106.9,6.38111076]
[1763503340973,0.4588,3108.0,3106.9,6.38111076]
[1763503341488,0.4588,3108.9,3107.0,1.31249664]
[1763503341692,0.002,3109.4,3108.0,1.31249664]
[1763503341693,0.4588,3108.6,3108.0,1.31249664]
[1763503342003,0.4588,3108.6,3108.0,0.405504]
[1763503342364,0.4588,3108.6,3108.1,0.4588]
[1763503342874,0.4816,3108.2,3108.1,0.4588]
[1763503343198,0.4588,3108.6,3108.1,0.4588]
[1763503343599,0.4816,3108.2,3108.1,0.4588]
[1763503344078,0.9404,3108.2,3108.1,0.4588]
[1763503345603,0.90699264,3109.3,3108.1,0.4588]
[1763503345778,0.4816,3108.2,3108.1,0.4588]
[1763503346705,0.4588,3108.4,3108.1,0.4588]
[1763503347066,0.4816,3108.2,3108.1,0.4588]
[1763503347791,0.4588,3108.4,3108.1,0.4588]
[1763503348905,0.4608,3108.7,3108.1,0.4588]
[1763503349684,0.002,3108.7,3108.3,0.90699264]
[1763503350211,0.002,3108.7,3108.6,0.90699264]
[1763503350413,0.4836,3108.7,3108.6,0.90699264]
[1763503351014,0.4836,3108.7,3108.4,0.4588]
[1763503351015,0.002,3108.7,3108.4,0.4588]
[1763503351215,0.002,3108.6,3108.5,5.8514365]
[1763503351423,0.002,3108.6,3108.5,6.48246015]
[1763503352314,0.002,3108.6,3108.5,7.12586015]
[1763503352624,0.9424,3108.6,3108.5,1.55039264]
[1763503353011,0.4836,3108.6,3108.5,1.55039264]
[1763503353835,0.9424,3108.6,3108.5,1.55039264]
[1763503354190,0.9424,3108.6,3108.5,0.6434]
[1763503359030,0.002,3108.6,3108.5,5.58784386]
[1763503359222,0.002,3108.6,3108.5,6.23732751]
[1763503360231,0.002,3108.6,3108.5,7.14432015]
[1763503361530,0.002,3108.6,3108.5,7.54982415]
[1763503363254,0.002,3108.6,3108.5,12.49426801]
[1763503363703,0.002,3108.7,3108.6,1.31249664]
[1763503363902,0.002,3108.7,3108.6,2.88363176]
[1763503364307,0.002,3108.9,3108.6,2.88363176]
[1763503364501,0.002,3108.9,3108.8,6.2569405]
[1763503369231,0.002,3108.9,3108.8,1.31249664]
[1763503369437,0.002,3108.9,3108.8,1.44139314]
[1763503369739,0.002,3108.9,3108.8,2.23709035]
[1763503374173,0.6452,3108.9,3108.8,7.18153421]
[1763503374326,0.6452,3108.9,3106.6,0.001]
[1763503374327,0.4528,3107.1,3106.6,0.001]
[1763503374531,0.1904,3107.8,3107.2,0.1290462]
[1763503374729,0.85265935,3108.1,3107.7,0.6949]
[1763503374936,0.002,3108.9,3108.1,4.94444386]
[1763503375223,0.002,3108.9,3108.2,4.55437727]
[1763503375461,0.002,3108.9,3108.2,0.1409]
[1763503375636,0.1409,3108.8,3108.2,0.1409]
[1763503376250,0.1409,3108.8,3108.2,2.11354335]
[1763503376457,0.1409,3108.8,3108.3,1.77983638]
[1763503377223,0.1409,3108.4,3108.3,1.77983638]
[1763503377732,0.1409,3108.4,3108.2,0.1409]
[1763503378039,0.1409,3108.3,3108.2,0.1409]
[1763503379846,0.002,3108.9,3108.2,0.1409]
[1763503380057,0.002,3108.9,3108.4,0.90699264]
[1763503380357,0.002,3108.9,3108.5,0.58836084]
[1763503380526,0.002,3108.9,3108.5,1.04656084]
[1763503381123,0.002,3108.9,3108.6,0.4582]
[1763503381760,0.002,3108.9,3108.8,0.4962]
[1763503382275,0.002,3108.9,3108.8,0.9544]
[1763503382978,0.002,3108.9,3108.8,1.359904]
[1763503383275,0.002,3108.9,3108.8,1.39207075]
[1763503383477,0.002,3108.9,3108.8,3.48438268]
[1763503384588,0.002,3109.6,3109.3,0.901704]
[1763503384767,0.1429,3111.4,3110.1,0.405504]
[1763503384969,0.1429,3111.4,3110.2,1.1531]
[1763503385287,0.2878,3111.4,3110.2,3.07489347]
[1763503385487,0.2878,3111.4,3110.2,2.16790083]
[1763503385645,0.1429,3111.4,3110.2,2.16790083]
[1763503387377,0.2878,3111.4,3110.2,2.16790083]
[1763503387579,0.1429,3111.4,3110.2,2.16790083]
[1763503387766,0.1449,3111.7,3110.3,0.405504]
[1763503387970,0.1449,3111.7,3110.3,1.355104]
[1763503388381,0.1449,3111.7,3110.5,0.405504]
[1763503388749,0.1449,3111.7,3110.6,0.4831]
[1763503389153,0.2898,3111.7,3110.6,0.4831]
[1763503389464,0.2898,3111.7,3110.4,0.25686048]
[1763503389679,0.1449,3111.6,3110.4,0.25686048]
[1763503390187,0.1449,3111.6,3110.4,0.73996048]
[1763503390557,0.1449,3111.6,3110.5,0.4831]
[1763503390888,0.1449,3111.7,3110.6,0.405504]
[1763503391059,0.1449,3112.3,3111.6,0.4665]
[1763503391260,0.68170108,3114.1,3111.7,0.405504]
[1763503391486,0.68170108,3114.4,3111.7,0.888604]
[1763503391665,0.82660108,3114.4,3111.8,0.96581186]
[1763503391982,0.405504,3114.2,3111.9,0.4831]
[1763503392283,0.82598873,3114.3,3111.8,0.96581186]
[1763503392482,1.938,3114.1,3111.8,0.96581186]
[1763503392687,6.65891567,3114.0,3111.8,0.96581186]
[1763503392852,0.31819814,3114.2,3111.8,0.96581186]
[1763503392853,0.1449,3111.9,3111.8,0.96581186]
[1763503393054,0.405504,3113.6,3111.8,0.96581186]
[1763503393268,0.405504,3113.4,3111.8,0.96581186]
[1763503393482,0.1449,3113.5,3111.8,0.96581186]
[1763503393680,0.1449,3113.4,3111.9,0.4831]
[1763503393988,0.1449,3112.0,3111.8,0.96581186]
[1763503394174,0.1449,3111.9,3111.8,0.96581186]
[1763503394780,0.2898,3111.9,3111.8,0.96581186]
[1763503394965,0.405504,3113.7,3111.8,0.96581186]
[1763503395286,0.1449,3112.7,3111.8,0.96581186]
[1763503395591,0.90699264,3113.8,3111.8,0.96581186]
[1763503395888,1.30699483,3113.7,3111.8,0.96581186]
[1763503396263,0.1449,3113.6,3111.8,0.96581186]
[1763503398057,0.1449,3111.9,3111.8,0.96581186]
[1763503398677,0.2898,3111.9,3111.8,0.96581186]
[1763503399062,0.1449,3111.9,3111.8,0.96581186]
[1763503399262,0.2898,3111.9,3111.8,0.96581186]
[1763503402765,0.695304,3111.9,3111.8,0.96581186]
[1763503403005,0.405504,3111.8,3109.9,0.1973]
[1763503403163,0.550404,3111.8,3110.0,0.4731]
[1763503403360,0.405504,3111.6,3110.5,0.96581186]
[1763503403796,0.405504,3111.4,3110.5,0.96581186]
[1763503404200,0.1449,3110.6,3110.5,0.96581186]
[1763503404400,0.1449,3110.6,3108.5,0.001]
[1763503404401,14.18695,3110.5,3108.5,0.001]
[1763503404602,0.405504,3109.6,3108.5,0.001]
[1763503404909,2.19027825,3110.4,3108.6,0.4731]
[1763503405088,0.1449,3110.6,3109.5,0.6804]
[1763503405282,0.1809,3111.8,3109.5,0.6804]
[1763503405509,0.47067409,3113.0,3109.6,0.50525847]
[1763503405708,6.65891567,3112.1,3109.6,0.4731]
[1763503405889,1.57288421,3112.0,3109.6,0.4731]
[1763503406389,1.57288421,3112.0,3109.7,0.96658047]
[1763503406587,0.405504,3111.9,3109.7,1.43968047]
[1763503407175,1.31249664,3111.4,3109.7,0.96658047]
[1763503409108,0.405504,3111.2,3109.7,0.96658047]
[1763503409478,0.66589157,3112.0,3109.8,0.5052564]
[1763503409673,1.31019408,3113.5,3110.2,0.405504]
[1763503409674,7.94101194,3113.5,3110.2,0.405504]
[1763503409913,0.75659083,3113.7,3110.2,0.405504]
[1763503409914,0.68206878,3113.4,3110.4,0.405504]
[1763503410127,0.68212062,3113.6,3110.6,0.405504]
[1763503410302,0.405504,3113.5,3110.8,1.31249664]
[1763503410618,0.75659083,3113.7,3110.9,0.81166294]
[1763503410772,0.2961324,3113.6,3110.6,0.278]
[1763503410978,0.75659083,3113.7,3110.7,0.4731]
[1763503411293,0.29631439,3113.6,3110.7,0.4731]
[1763503411490,0.405504,3113.5,3110.7,0.4731]
[1763503411690,0.97843501,3113.5,3110.7,0.4731]
[1763503411986,0.18854277,3113.4,3110.7,0.4731]
[1763503412192,0.405504,3113.3,3110.7,0.4731]
[1763503412395,0.405504,3113.3,3109.6,0.83096081]
[1763503412396,0.405504,3111.6,3109.6,0.83096081]
[1763503412694,1.13687914,3113.1,3110.2,6.8041328]
[1763503412889,0.405504,3113.1,3110.3,2.06050592]
[1763503413111,6.8041328,3112.8,3109.9,0.4731]
[1763503413316,0.405504,3112.5,3109.9,0.4731]
[1763503413489,1.31249664,3112.3,3109.6,0.1809]
[1763503413694,0.405504,3112.1,3109.7,1.43968047]
[1763503413896,1.31249664,3111.9,3109.7,0.96658047]
[1763503414222,1.31249664,3111.7,3109.7,0.96658047]
[1763503414404,2.44937578,3111.5,3109.1,0.1809]
[1763503414607,0.405504,3111.3,3109.5,0.96658047]
[1763503414789,1.31249664,3111.1,3109.5,0.96658047]
[1763503414982,1.13687914,3111.5,3108.6,0.4731]
[1763503414983,0.405504,3110.9,3108.6,0.4731]
[1763503415179,0.405504,3110.9,3108.7,0.96658047]
[1763503415387,0.405504,3111.1,3108.7,0.96658047]
[1763503415805,0.70182534,3111.1,3108.7,0.96658047]
[1763503416003,0.405504,3111.2,3108.7,0.96658047]
[1763503416212,1.60881742,3111.2,3108.7,0.96658047]
[1763503416517,0.405504,3111.0,3108.7,0.96658047]
[1763503418118,7.2096368,3111.0,3108.7,0.96658047]
[1763503418298,1.31249664,3110.3,3108.7,0.96658047]
[1763503419923,1.31249664,3110.3,3108.6,0.001]
[1763503421688,0.16088174,3111.1,3108.6,0.001]
[1763503421689,6.8041328,3111.0,3108.6,0.001]
[1763503421892,2.2831172,3110.9,3108.7,0.4976]
[1763503422093,0.405504,3110.8,3108.7,0.4976]
[1763503424825,0.405504,3110.8,3108.3,0.001]
[1763503424826,6.8041328,3108.8,3108.3,0.001]
[1763503425032,7.26801676,3109.9,3108.3,0.001]
[1763503425033,3.07487914,3109.6,3108.3,0.001]
[1763503425327,2.31109927,3110.2,3108.3,0.001]
[1763503425328,1.33777895,3110.7,3108.4,0.4976]
[1763503425488,0.2647973,3110.6,3108.5,0.03216985]
[1763503425684,1.13687914,3111.5,3108.4,0.4976]
[1763503425890,0.90699264,3110.5,3108.4,0.4976]
[1763503426139,1.13687914,3111.3,3108.4,0.4976]
[1763503426301,3.25185437,3111.2,3108.4,0.4976]
[1763503426487,0.90699264,3111.0,3108.4,0.4976]
[1763503426687,0.90699264,3110.8,3108.4,0.4976]
[1763503427005,1.58665401,3110.8,3108.4,0.4976]
[1763503427204,0.405504,3110.7,3108.4,0.4976]
[1763503427403,1.08540593,3110.7,3108.4,0.4976]
[1763503427594,3.25049664,3110.5,3108.4,0.4976]
[1763503427789,0.90699264,3110.5,3108.4,0.4976]
[1763503428018,1.31249664,3110.4,3108.4,0.4976]
[1763503428212,0.405504,3110.4,3108.4,0.4976]
[1763503428524,0.405504,3110.5,3108.4,0.4976]
[1763503429407,1.31249664,3110.3,3108.4,0.4976]
[1763503429732,0.405504,3110.1,3108.4,0.4976]
[1763503430034,0.405504,3110.5,3108.4,0.4976]
[1763503430528,0.405504,3110.5,3108.3,0.001]
[1763503430529,1.31249664,3109.6,3108.3,0.001]
[1763503430744,1.16249664,3109.6,3108.3,0.001]
[1763503430910,0.79666294,3109.5,3108.3,0.001]
[1763503431799,1.938,3109.9,3108.3,0.001]
[1763503432010,3.52552011,3109.8,3108.3,0.001]
[1763503432249,0.90699264,3109.6,3108.3,0.001]
[1763503432400,2.61834255,3109.6,3108.3,0.001]
[1763503432599,0.405504,3109.4,3108.3,0.001]
[1763503432796,0.405504,3109.2,3108.3,0.001]
[1763503433736,0.405504,3109.4,3108.3,0.001]
[1763503433983,1.13687914,3109.8,3108.3,0.001]
[1763503433984,0.405504,3109.6,3108.3,0.001]
[1763503434111,2.055746,3109.5,3108.3,0.001]
[1763503434440,6.8041328,3108.4,3108.3,0.001]
[1763503434736,1.08591728,3108.4,3108.3,0.001]
[1763503434898,0.405504,3108.4,3108.3,0.001]
[1763503442306,0.68010279,3108.5,3108.3,0.001]
[1763503442521,0.68010279,3108.7,3108.3,0.001]
[1763503442727,0.405504,3108.9,3108.3,0.001]
[1763503442945,0.405504,3108.8,3108.3,0.001]
[1763503443348,0.405504,3108.6,3108.3,0.001]
[1763503443715,0.405504,3108.9,3108.3,0.001]
[1763503443915,0.405504,3108.7,3108.3,0.001]
[1763503444117,1.08560679,3108.7,3108.3,0.001]
[1763503444348,0.405504,3108.9,3108.3,0.001]
[1763503444537,0.405504,3108.5,3108.3,0.001]
[1763503445272,0.405504,3108.8,3108.3,0.001]
[1763503445442,0.6816855,3108.7,3108.3,0.001]
[1763503445612,0.405504,3108.5,3108.3,0.001]
[1763503446246,0.405504,3108.7,3108.3,0.001]
[1763503446448,0.405504,3108.5,3108.3,0.001]
[1763503446818,0.405504,3108.7,3108.3,0.001]
[1763503447018,0.405504,3108.5,3108.3,0.001]
[1763503447328,0.405504,3108.4,3108.3,0.001]
[1763503447919,0.405504,3108.5,3108.3,0.001]
[1763503448320,0.405504,3108.8,3108.3,0.001]
[1763503448520,0.68215058,3108.7,3108.3,0.001]
[1763503448755,0.405504,3108.5,3108.3,0.001]
[1763503449142,0.85012849,3108.9,3108.3,0.001]
[1763503449348,0.85012849,3109.7,3108.8,0.4904]
[1763503449659,0.85012849,3110.3,3109.0,0.4904]
[1763503449864,0.68273793,3110.2,3109.0,0.4904]
[1763503450159,0.405504,3110.0,3109.1,0.1885]
[1763503450465,0.68273793,3109.9,3109.1,0.1885]
[1763503450651,1.32385838,3110.4,3109.1,0.1885]
[1763503450652,0.405504,3109.8,3109.1,0.1885]
[1763503450957,1.08817583,3110.1,3109.1,0.1885]
[1763503451145,0.405504,3109.9,3109.1,0.1885]
[1763503451457,0.90699264,3109.6,3108.5,0.1885]
[1763503451658,1.08805167,3109.5,3108.4,0.6668]
[1763503451862,0.405504,3109.6,3108.4,0.6668]
[1763503452063,0.405504,3109.4,3108.4,0.6668]
[1763503452235,0.405504,3109.2,3108.4,0.6668]
[1763503452436,0.405504,3109.2,3108.5,0.4783]
[1763503452660,1.08807904,3109.5,3108.5,0.4783]